[Event "Titled Tuesday Blitz June 15 2021"]
[White "Siniauski, Artsiom"]
[Black "Gormally, Daniel W"]
[WhiteFideId "13512269"]
[BlackFideId "406465"]
[WhiteElo "2212"]
[BlackElo "2543"]
[Result "1/2-1/2"]
[Round "03"]
[TimeControl "180+1"]
[Date "2021.06.15"]
[WhiteClock "0:00:07"]
[BlackClock "0:00:37"]

1. e4 {[%clk 0:02:58]}  c5 {[%clk 0:02:59]} 2. Nf3 {[%clk 0:02:57]}  d6 {[%clk 0:03:00]} 3. Bb5+ {[%clk 0:02:57]}  Nd7 {[%clk 0:02:59]} 4. d4 {[%clk 0:02:56]}  Nf6 {[%clk 0:02:59]} 5. e5 {[%clk 0:02:50]}  cxd4 {[%clk 0:02:55]} 6. Qxd4 {[%clk 0:02:35]}  dxe5 {[%clk 0:02:51]} 7. Nxe5 {[%clk 0:02:34]}  a6 {[%clk 0:02:50]} 8. Bxd7+ {[%clk 0:02:19]}  Bxd7 {[%clk 0:02:44]} 9. O-O {[%clk 0:02:17]}  Be6 {[%clk 0:02:39]} 10. Be3 {[%clk 0:01:59]}  Qxd4 {[%clk 0:02:36]} 11. Bxd4 {[%clk 0:01:59]}  Nd7 {[%clk 0:02:33]} 12. Nc3 {[%clk 0:01:55]}  Nxe5 {[%clk 0:02:31]} 13. Bxe5 {[%clk 0:01:56]}  f6 {[%clk 0:02:32]} 14. Bd4 {[%clk 0:01:52]}  Rc8 {[%clk 0:02:20]} 15. Rfd1 {[%clk 0:01:50]}  Bf5 {[%clk 0:02:15]} 16. Rd2 {[%clk 0:01:48]}  e5 {[%clk 0:02:15]} 17. Bb6 {[%clk 0:01:43]}  Bb4 {[%clk 0:02:15]} 18. Rad1 {[%clk 0:01:38]}  Kf7 {[%clk 0:02:15]} 19. f3 {[%clk 0:00:51]}  h5 {[%clk 0:02:11]} 20. Kf2 {[%clk 0:00:50]}  Bxc3 {[%clk 0:02:11]} 21. bxc3 {[%clk 0:00:50]}  Rxc3 {[%clk 0:02:11]} 22. Ba5 {[%clk 0:00:51]}  Rxc2 {[%clk 0:01:51]} 23. Rxc2 {[%clk 0:00:51]}  Bxc2 {[%clk 0:01:52]} 24. Rd7+ {[%clk 0:00:50]}  Kg6 {[%clk 0:01:52]} 25. Rxb7 {[%clk 0:00:50]}  Rc8 {[%clk 0:01:51]} 26. Rc7 {[%clk 0:00:47]}  Bf5 {[%clk 0:01:43]} 27. Rxc8 {[%clk 0:00:47]}  Bxc8 {[%clk 0:01:43]} 28. Ke3 {[%clk 0:00:46]}  Kf5 {[%clk 0:01:43]} 29. g3 {[%clk 0:00:45]}  g5 {[%clk 0:01:42]} 30. Bd8 {[%clk 0:00:44]}  Ke6 {[%clk 0:01:41]} 31. h4 {[%clk 0:00:40]}  Kf5 {[%clk 0:01:27]} 32. a3 {[%clk 0:00:34]}  Bb7 {[%clk 0:01:27]} 33. Bc7 {[%clk 0:00:28]}  Bc6 {[%clk 0:01:14]} 34. Bb8 {[%clk 0:00:20]}  Ba4 {[%clk 0:01:14]} 35. Bc7 {[%clk 0:00:19]}  Bd1 {[%clk 0:01:14]} 36. Bb8 {[%clk 0:00:17]}  Ke6 {[%clk 0:01:12]} 37. Bc7 {[%clk 0:00:16]}  Kd7 {[%clk 0:01:07]} 38. Bb8 {[%clk 0:00:12]}  g4 {[%clk 0:01:04]} 39. f4 {[%clk 0:00:12]}  Ke6 {[%clk 0:01:05]} 40. Bc7 {[%clk 0:00:09]}  Kd5 {[%clk 0:01:04]} 41. Bb8 {[%clk 0:00:09]}  Bf3 {[%clk 0:01:03]} 42. Bc7 {[%clk 0:00:08]}  Be4 {[%clk 0:01:02]} 43. Bd8 {[%clk 0:00:08]}  f5 {[%clk 0:00:50]} 44. Bc7 {[%clk 0:00:07]}  exf4+ {[%clk 0:00:49]} 45. Kxf4 {[%clk 0:00:08]}  Kc6 {[%clk 0:00:43]} 46. Bd8 {[%clk 0:00:08]}  Bd5 {[%clk 0:00:39]} 47. Kxf5 {[%clk 0:00:07]}  Bf7 {[%clk 0:00:40]} 48. Kf6 {[%clk 0:00:07]}  Be8 {[%clk 0:00:39]} 49. Ba5 {[%clk 0:00:07]}  Kd7 {[%clk 0:00:38]} 50. Bb4 {[%clk 0:00:08]}  Kd8 {[%clk 0:00:37]} 51. Be7+ {[%clk 0:00:07]} 1/2-1/2


[Site "https://www.chess.com"]

[Event "Titled Tuesday Blitz June 15 2021"]
[White "Stribuk, Artiom"]
[Black "Svane, Frederik"]
[WhiteFideId "13515659"]
[BlackFideId "12923044"]
[WhiteElo "2177"]
[BlackElo "2459"]
[Result "1/2-1/2"]
[Round "03"]
[TimeControl "180+1"]
[Date "2021.06.15"]
[WhiteClock "0:02:42"]
[BlackClock "0:01:59"]

1. d4 {[%clk 0:03:00]}  Nf6 {[%clk 0:03:00]} 2. c4 {[%clk 0:03:00]}  e6 {[%clk 0:03:00]} 3. g3 {[%clk 0:03:00]}  d5 {[%clk 0:03:00]} 4. Nf3 {[%clk 0:03:00]}  Bb4+ {[%clk 0:03:00]} 5. Bd2 {[%clk 0:02:59]}  Be7 {[%clk 0:03:01]} 6. Bg2 {[%clk 0:02:59]}  O-O {[%clk 0:03:02]} 7. O-O {[%clk 0:03:00]}  c6 {[%clk 0:03:01]} 8. Qc2 {[%clk 0:03:00]}  b6 {[%clk 0:03:01]} 9. Bf4 {[%clk 0:03:00]}  Nbd7 {[%clk 0:02:57]} 10. Rd1 {[%clk 0:03:00]}  Bb7 {[%clk 0:02:55]} 11. Ne5 {[%clk 0:03:00]}  Nh5 {[%clk 0:02:53]} 12. Bd2 {[%clk 0:02:57]}  Nhf6 {[%clk 0:02:44]} 13. Bf4 {[%clk 0:02:56]}  Nh5 {[%clk 0:02:44]} 14. Bd2 {[%clk 0:02:55]}  Rc8 {[%clk 0:02:37]} 15. Nc3 {[%clk 0:02:46]}  Nhf6 {[%clk 0:02:35]} 16. Bf4 {[%clk 0:02:46]}  Nh5 {[%clk 0:02:29]} 17. Bc1 {[%clk 0:02:46]}  Nhf6 {[%clk 0:02:21]} 18. Bf4 {[%clk 0:02:45]}  Nh5 {[%clk 0:01:59]} 19. Bc1 {[%clk 0:02:44]}  Nhf6 {[%clk 0:01:59]} 20. Bf4 {[%clk 0:02:42]} 1/2-1/2


[Site "https://www.chess.com"]

[Event "Titled Tuesday Blitz June 15 2021"]
[White "Tejedor Fuente, Enrique"]
[Black "Eljanov, Pavel"]
[WhiteFideId "2299100"]
[BlackFideId "14102951"]
[WhiteElo "2535"]
[BlackElo "2602"]
[Result "1/2-1/2"]
[Round "03"]
[TimeControl "180+1"]
[Date "2021.06.15"]
[WhiteClock "0:00:02"]
[BlackClock "0:00:23"]

1. e3 {[%clk 0:02:59]}  d5 {[%clk 0:02:59]} 2. c4 {[%clk 0:02:58]}  e6 {[%clk 0:02:58]} 3. b3 {[%clk 0:02:54]}  Nf6 {[%clk 0:02:57]} 4. g4 {[%clk 0:02:54]}  c5 {[%clk 0:02:51]} 5. Bg2 {[%clk 0:02:51]}  Nc6 {[%clk 0:02:50]} 6. g5 {[%clk 0:02:48]}  Ng8 {[%clk 0:02:28]} 7. h4 {[%clk 0:02:42]}  h6 {[%clk 0:02:24]} 8. f4 {[%clk 0:02:38]}  Nge7 {[%clk 0:02:16]} 9. Nc3 {[%clk 0:02:33]}  d4 {[%clk 0:02:15]} 10. Ne4 {[%clk 0:02:28]}  Nf5 {[%clk 0:02:16]} 11. Nf3 {[%clk 0:02:23]}  b6 {[%clk 0:02:09]} 12. exd4 {[%clk 0:02:14]}  cxd4 {[%clk 0:02:05]} 13. a3 {[%clk 0:02:09]}  Bb7 {[%clk 0:02:04]} 14. d3 {[%clk 0:01:57]}  Qc7 {[%clk 0:02:00]} 15. Qe2 {[%clk 0:01:52]}  a5 {[%clk 0:01:40]} 16. Bd2 {[%clk 0:01:44]}  O-O-O {[%clk 0:01:37]} 17. O-O {[%clk 0:01:25]}  hxg5 {[%clk 0:01:32]} 18. hxg5 {[%clk 0:01:26]}  Bd6 {[%clk 0:01:15]} 19. Nxd6+ {[%clk 0:01:19]}  Qxd6 {[%clk 0:01:16]} 20. Qe1 {[%clk 0:01:10]}  Ne3 {[%clk 0:01:02]} 21. Bxe3 {[%clk 0:01:08]}  dxe3 {[%clk 0:01:03]} 22. Qxe3 {[%clk 0:01:08]}  Qc5 {[%clk 0:00:54]} 23. Qxc5 {[%clk 0:00:57]}  bxc5 {[%clk 0:00:55]} 24. Rad1 {[%clk 0:00:57]}  Nd4 {[%clk 0:00:51]} 25. Nxd4 {[%clk 0:00:54]}  Rxd4 {[%clk 0:00:52]} 26. Bxb7+ {[%clk 0:00:49]}  Kxb7 {[%clk 0:00:53]} 27. Kg2 {[%clk 0:00:50]}  Kc6 {[%clk 0:00:48]} 28. Kf3 {[%clk 0:00:46]}  Rb8 {[%clk 0:00:47]} 29. Ke3 {[%clk 0:00:34]}  Rxb3 {[%clk 0:00:47]} 30. Rh1 {[%clk 0:00:32]}  g6 {[%clk 0:00:39]} 31. Rh7 {[%clk 0:00:31]}  Rd7 {[%clk 0:00:39]} 32. a4 {[%clk 0:00:30]}  Ra3 {[%clk 0:00:40]} 33. Ke4 {[%clk 0:00:26]}  Rxa4 {[%clk 0:00:37]} 34. Ke5 {[%clk 0:00:26]}  Ra2 {[%clk 0:00:37]} 35. Rf1 {[%clk 0:00:20]}  a4 {[%clk 0:00:37]} 36. Kf6 {[%clk 0:00:19]}  a3 {[%clk 0:00:21]} 37. Rxf7 {[%clk 0:00:19]}  Rxf7+ {[%clk 0:00:22]} 38. Kxf7 {[%clk 0:00:20]}  Rd2 {[%clk 0:00:17]} 39. Kxg6 {[%clk 0:00:18]}  Rxd3 {[%clk 0:00:17]} 40. Kf7 {[%clk 0:00:15]}  a2 {[%clk 0:00:18]} 41. Ra1 {[%clk 0:00:10]}  Rd4 {[%clk 0:00:18]} 42. Kxe6 {[%clk 0:00:07]}  Rxf4 {[%clk 0:00:18]} 43. Rxa2 {[%clk 0:00:06]}  Rxc4 {[%clk 0:00:18]} 44. Rg2 {[%clk 0:00:01]}  Re4+ {[%clk 0:00:18]} 45. Kf5 {[%clk 0:00:01]}  Re8 {[%clk 0:00:18]} 46. g6 {[%clk 0:00:02]}  c4 {[%clk 0:00:18]} 47. g7 {[%clk 0:00:02]}  Rg8 {[%clk 0:00:18]} 48. Kf6 {[%clk 0:00:02]}  Kd5 {[%clk 0:00:19]} 49. Kf7 {[%clk 0:00:02]}  Ra8 {[%clk 0:00:19]} 50. g8=Q {[%clk 0:00:01]}  Rxg8 {[%clk 0:00:19]} 51. Kxg8 {[%clk 0:00:02]}  c3 {[%clk 0:00:19]} 52. Kf7 {[%clk 0:00:02]}  Kd4 {[%clk 0:00:19]} 53. Ke6 {[%clk 0:00:02]}  Kd3 {[%clk 0:00:19]} 54. Kd5 {[%clk 0:00:02]}  c2 {[%clk 0:00:20]} 55. Rg3+ {[%clk 0:00:02]}  Kd2 {[%clk 0:00:21]} 56. Rg2+ {[%clk 0:00:02]}  Kc3 {[%clk 0:00:21]} 57. Rg1 {[%clk 0:00:02]}  Kd2 {[%clk 0:00:21]} 58. Rg2+ {[%clk 0:00:02]}  Kd3 {[%clk 0:00:21]} 59. Rg1 {[%clk 0:00:02]}  Kd2 {[%clk 0:00:22]} 60. Kd4 {[%clk 0:00:02]}  c1=Q {[%clk 0:00:21]} 61. Rg2+ {[%clk 0:00:02]}  Ke1 {[%clk 0:00:21]} 62. Rg1+ {[%clk 0:00:02]}  Kd2 {[%clk 0:00:22]} 63. Rg2+ {[%clk 0:00:02]}  Ke1 {[%clk 0:00:22]} 64. Rg1+ {[%clk 0:00:02]}  Kd2 {[%clk 0:00:23]} 1/2-1/2


[Site "https://www.chess.com"]

[Event "Titled Tuesday Blitz June 15 2021"]
[White "Terry, Renato"]
[Black "Caputcuoglu, Zeki Berke"]
[WhiteFideId "3803457"]
[BlackFideId "34548610"]
[WhiteElo "2581"]
[BlackElo "1368"]
[Result "1-0"]
[Round "03"]
[TimeControl "180+1"]
[Date "2021.06.15"]
[WhiteClock "0:00:11"]
[BlackClock "0:00:02"]

1. e4 {[%clk 0:03:00]}  e5 {[%clk 0:02:56]} 2. Nf3 {[%clk 0:03:00]}  Nc6 {[%clk 0:02:56]} 3. c3 {[%clk 0:03:01]}  Nf6 {[%clk 0:02:47]} 4. d4 {[%clk 0:03:01]}  Nxe4 {[%clk 0:02:46]} 5. d5 {[%clk 0:03:01]}  Bc5 {[%clk 0:02:44]} 6. dxc6 {[%clk 0:03:01]}  Bxf2+ {[%clk 0:02:45]} 7. Ke2 {[%clk 0:03:00]}  Bb6 {[%clk 0:02:45]} 8. Qd5 {[%clk 0:03:00]}  Nf2 {[%clk 0:02:41]} 9. Rg1 {[%clk 0:02:59]}  bxc6 {[%clk 0:01:59]} 10. Qxe5+ {[%clk 0:02:58]}  Kf8 {[%clk 0:01:59]} 11. Nd4 {[%clk 0:02:05]}  Ng4 {[%clk 0:01:37]} 12. Qf4 {[%clk 0:02:05]}  d6 {[%clk 0:01:36]} 13. Kd1 {[%clk 0:01:59]}  c5 {[%clk 0:00:49]} 14. Nf5 {[%clk 0:01:30]}  Qf6 {[%clk 0:00:37]} 15. Bd3 {[%clk 0:01:03]}  c4 {[%clk 0:00:34]} 16. Qxg4 {[%clk 0:00:49]}  Bxg1 {[%clk 0:00:18]} 17. Bc2 {[%clk 0:00:34]}  h5 {[%clk 0:00:14]} 18. Qf3 {[%clk 0:00:33]}  Rb8 {[%clk 0:00:13]} 19. Nd2 {[%clk 0:00:28]}  g6 {[%clk 0:00:13]} 20. Ne3 {[%clk 0:00:20]}  Qxf3+ {[%clk 0:00:11]} 21. Nxf3 {[%clk 0:00:20]}  Bxe3 {[%clk 0:00:12]} 22. Bxe3 {[%clk 0:00:21]}  Bg4 {[%clk 0:00:12]} 23. b3 {[%clk 0:00:19]}  cxb3 {[%clk 0:00:11]} 24. axb3 {[%clk 0:00:20]}  Kg7 {[%clk 0:00:11]} 25. Bd4+ {[%clk 0:00:20]}  f6 {[%clk 0:00:12]} 26. Rxa7 {[%clk 0:00:20]}  Rhc8 {[%clk 0:00:11]} 27. Kd2 {[%clk 0:00:21]}  Ra8 {[%clk 0:00:10]} 28. Rb7 {[%clk 0:00:20]}  Ra2 {[%clk 0:00:10]} 29. Kc1 {[%clk 0:00:19]}  Ra1+ {[%clk 0:00:04]} 30. Kb2 {[%clk 0:00:18]}  Rh1 {[%clk 0:00:04]} 31. Bb6 {[%clk 0:00:10]}  Bxf3 {[%clk 0:00:03]} 32. gxf3 {[%clk 0:00:11]}  Rxh2 {[%clk 0:00:03]} 33. Bxc7 {[%clk 0:00:12]}  Kh6 {[%clk 0:00:02]} 34. Bxd6 {[%clk 0:00:12]}  g5 {[%clk 0:00:02]} 35. Rh7# {[%clk 0:00:11]} 1-0


[Site "https://www.chess.com"]

[Event "Titled Tuesday Blitz June 15 2021"]
[White "Tristan, Leonardo"]
[Black "Michailov, Matias"]
[WhiteFideId "113816"]
[BlackFideId "3001571"]
[WhiteElo "2404"]
[BlackElo "2231"]
[Result "1-0"]
[Round "03"]
[TimeControl "180+1"]
[Date "2021.06.15"]
[WhiteClock "0:00:07"]
[BlackClock "0:00:08"]

1. d4 {[%clk 0:03:00]}  Nf6 {[%clk 0:02:58]} 2. Bf4 {[%clk 0:03:01]}  g6 {[%clk 0:02:55]} 3. e3 {[%clk 0:03:01]}  Bg7 {[%clk 0:02:55]} 4. Nf3 {[%clk 0:03:02]}  O-O {[%clk 0:02:55]} 5. Be2 {[%clk 0:03:03]}  d6 {[%clk 0:02:56]} 6. O-O {[%clk 0:03:03]}  c5 {[%clk 0:02:55]} 7. c3 {[%clk 0:03:03]}  b6 {[%clk 0:02:56]} 8. h3 {[%clk 0:03:02]}  Bb7 {[%clk 0:02:56]} 9. Nbd2 {[%clk 0:03:03]}  a6 {[%clk 0:02:56]} 10. a4 {[%clk 0:03:03]}  Nbd7 {[%clk 0:02:57]} 11. Bh2 {[%clk 0:03:03]}  Rc8 {[%clk 0:02:45]} 12. Bd3 {[%clk 0:03:03]}  Re8 {[%clk 0:02:40]} 13. Qe2 {[%clk 0:03:03]}  Ra8 {[%clk 0:02:27]} 14. e4 {[%clk 0:03:03]}  e5 {[%clk 0:02:27]} 15. dxe5 {[%clk 0:03:01]}  dxe5 {[%clk 0:02:28]} 16. Nc4 {[%clk 0:02:43]}  Qc7 {[%clk 0:02:27]} 17. Rad1 {[%clk 0:02:28]}  Nh5 {[%clk 0:02:22]} 18. Qd2 {[%clk 0:01:43]}  Rad8 {[%clk 0:02:17]} 19. Ne3 {[%clk 0:01:36]}  Nf4 {[%clk 0:02:14]} 20. Bxf4 {[%clk 0:01:34]}  exf4 {[%clk 0:02:14]} 21. Nd5 {[%clk 0:01:35]}  Bxd5 {[%clk 0:02:07]} 22. exd5 {[%clk 0:01:36]}  c4 {[%clk 0:02:01]} 23. Bc2 {[%clk 0:01:32]}  Nc5 {[%clk 0:02:01]} 24. Rfe1 {[%clk 0:01:32]}  Rxe1+ {[%clk 0:01:52]} 25. Rxe1 {[%clk 0:01:32]}  Bf6 {[%clk 0:01:51]} 26. Rd1 {[%clk 0:01:28]}  Rd6 {[%clk 0:01:49]} 27. Qxf4 {[%clk 0:01:26]}  Kg7 {[%clk 0:01:49]} 28. Qxc4 {[%clk 0:01:24]}  b5 {[%clk 0:01:44]} 29. axb5 {[%clk 0:01:22]}  axb5 {[%clk 0:01:45]} 30. Qb4 {[%clk 0:01:16]}  Ra6 {[%clk 0:01:10]} 31. h4 {[%clk 0:01:08]}  Nb7 {[%clk 0:01:09]} 32. h5 {[%clk 0:01:04]}  Nd6 {[%clk 0:01:09]} 33. Qf4 {[%clk 0:01:01]}  Qd8 {[%clk 0:01:01]} 34. h6+ {[%clk 0:00:59]}  Kg8 {[%clk 0:01:01]} 35. Re1 {[%clk 0:00:56]}  Kf8 {[%clk 0:00:50]} 36. g4 {[%clk 0:00:53]}  Nc4 {[%clk 0:00:42]} 37. g5 {[%clk 0:00:51]}  Be7 {[%clk 0:00:42]} 38. b3 {[%clk 0:00:34]}  Na3 {[%clk 0:00:23]} 39. Qd4 {[%clk 0:00:15]}  f6 {[%clk 0:00:24]} 40. Bd3 {[%clk 0:00:13]}  Rd6 {[%clk 0:00:20]} 41. c4 {[%clk 0:00:12]}  bxc4 {[%clk 0:00:20]} 42. bxc4 {[%clk 0:00:13]}  Kf7 {[%clk 0:00:13]} 43. Qa7 {[%clk 0:00:11]}  Rd7 {[%clk 0:00:13]} 44. Qa6 {[%clk 0:00:09]}  Bd6 {[%clk 0:00:12]} 45. c5 {[%clk 0:00:08]}  Bxc5 {[%clk 0:00:10]} 46. Qe6+ {[%clk 0:00:08]}  Kf8 {[%clk 0:00:11]} 47. gxf6 {[%clk 0:00:07]}  Rf7 {[%clk 0:00:11]} 48. Ng5 {[%clk 0:00:07]}  Rxf6 {[%clk 0:00:08]} 49. Nxh7# {[%clk 0:00:07]} 1-0


[Site "https://www.chess.com"]

[Event "Titled Tuesday Blitz June 15 2021"]
[White "Vallejo Diaz, Javier"]
[Black "Rottenwohrer Suarez, Juan"]
[WhiteFideId "2256398"]
[BlackFideId "32068182"]
[WhiteElo "2693"]
[BlackElo "2188"]
[Result "0-1"]
[Round "03"]
[TimeControl "180+1"]
[Date "2021.06.15"]
[WhiteClock "0:00:47"]
[BlackClock "0:00:15"]

1. e4 {[%clk 0:03:00]}  c5 {[%clk 0:02:59]} 2. Nf3 {[%clk 0:03:00]}  g6 {[%clk 0:02:59]} 3. g3 {[%clk 0:02:58]}  Nc6 {[%clk 0:02:59]} 4. Bg2 {[%clk 0:02:58]}  Bg7 {[%clk 0:03:00]} 5. d3 {[%clk 0:02:58]}  Nf6 {[%clk 0:03:00]} 6. c3 {[%clk 0:02:58]}  O-O {[%clk 0:03:00]} 7. O-O {[%clk 0:02:59]}  e5 {[%clk 0:03:00]} 8. Nbd2 {[%clk 0:02:58]}  Rb8 {[%clk 0:02:54]} 9. a4 {[%clk 0:02:55]}  a6 {[%clk 0:02:45]} 10. Nc4 {[%clk 0:02:54]}  d6 {[%clk 0:02:23]} 11. h3 {[%clk 0:02:53]}  b5 {[%clk 0:02:19]} 12. axb5 {[%clk 0:02:53]}  axb5 {[%clk 0:02:20]} 13. Ne3 {[%clk 0:02:53]}  b4 {[%clk 0:02:17]} 14. Nh4 {[%clk 0:02:45]}  Be6 {[%clk 0:02:00]} 15. c4 {[%clk 0:02:38]}  Nd4 {[%clk 0:01:57]} 16. Nc2 {[%clk 0:02:11]}  Nxc2 {[%clk 0:01:00]} 17. Qxc2 {[%clk 0:02:10]}  Nd7 {[%clk 0:01:00]} 18. b3 {[%clk 0:02:05]}  Ra8 {[%clk 0:00:57]} 19. Rxa8 {[%clk 0:02:04]}  Qxa8 {[%clk 0:00:58]} 20. f4 {[%clk 0:02:04]}  exf4 {[%clk 0:00:56]} 21. gxf4 {[%clk 0:02:03]}  Qd8 {[%clk 0:00:52]} 22. Nf3 {[%clk 0:02:00]}  Nb8 {[%clk 0:00:52]} 23. Ng5 {[%clk 0:01:59]}  Nc6 {[%clk 0:00:50]} 24. f5 {[%clk 0:01:54]}  Nd4 {[%clk 0:00:48]} 25. Qd1 {[%clk 0:01:44]}  gxf5 {[%clk 0:00:46]} 26. Qh5 {[%clk 0:01:43]}  h6 {[%clk 0:00:46]} 27. Nxe6 {[%clk 0:01:39]}  fxe6 {[%clk 0:00:44]} 28. Bxh6 {[%clk 0:01:38]}  Bxh6 {[%clk 0:00:26]} 29. Qxh6 {[%clk 0:01:37]}  Qf6 {[%clk 0:00:27]} 30. Qh5 {[%clk 0:01:26]}  f4 {[%clk 0:00:26]} 31. Bf3 {[%clk 0:01:21]}  Rf7 {[%clk 0:00:21]} 32. Bg4 {[%clk 0:01:17]}  f3 {[%clk 0:00:19]} 33. Kf2 {[%clk 0:01:14]}  Qf4 {[%clk 0:00:16]} 34. Qg6+ {[%clk 0:00:57]}  Kf8 {[%clk 0:00:16]} 35. Kg1 {[%clk 0:00:47]}  Qg3+ {[%clk 0:00:15]} 0-1


[Site "https://www.chess.com"]

[Event "Titled Tuesday Blitz June 15 2021"]
[White "Viana Da Costa, Fernando"]
[Black "Timofeev, Artyom"]
[WhiteFideId "2111900"]
[BlackFideId "4140419"]
[WhiteElo "2247"]
[BlackElo "2582"]
[Result "0-1"]
[Round "03"]
[TimeControl "180+1"]
[Date "2021.06.15"]
[WhiteClock "0:00:01"]
[BlackClock "0:00:25"]

1. Nf3 {[%clk 0:03:00]}  Nf6 {[%clk 0:02:58]} 2. e3 {[%clk 0:02:59]}  b6 {[%clk 0:02:58]} 3. b3 {[%clk 0:02:59]}  Bb7 {[%clk 0:02:58]} 4. Bb2 {[%clk 0:02:59]}  g6 {[%clk 0:02:57]} 5. Bxf6 {[%clk 0:02:58]}  exf6 {[%clk 0:02:57]} 6. c4 {[%clk 0:02:58]}  f5 {[%clk 0:02:54]} 7. Nc3 {[%clk 0:02:57]}  Bg7 {[%clk 0:02:54]} 8. Rc1 {[%clk 0:02:57]}  O-O {[%clk 0:02:54]} 9. g3 {[%clk 0:02:58]}  Nc6 {[%clk 0:02:45]} 10. Bg2 {[%clk 0:02:56]}  Nb4 {[%clk 0:02:34]} 11. d4 {[%clk 0:02:41]}  c5 {[%clk 0:02:33]} 12. O-O {[%clk 0:02:37]}  d6 {[%clk 0:02:30]} 13. a3 {[%clk 0:02:35]}  Nc6 {[%clk 0:02:30]} 14. Nd5 {[%clk 0:02:20]}  Re8 {[%clk 0:02:27]} 15. dxc5 {[%clk 0:02:13]}  dxc5 {[%clk 0:02:25]} 16. Qc2 {[%clk 0:02:12]}  Ne7 {[%clk 0:02:20]} 17. Nxe7+ {[%clk 0:01:37]}  Qxe7 {[%clk 0:02:18]} 18. Nd2 {[%clk 0:01:38]}  Rad8 {[%clk 0:02:11]} 19. Rfd1 {[%clk 0:01:35]}  Bc8 {[%clk 0:01:58]} 20. Nb1 {[%clk 0:01:30]}  Rxd1+ {[%clk 0:01:56]} 21. Rxd1 {[%clk 0:01:30]}  Rd8 {[%clk 0:01:57]} 22. Bd5 {[%clk 0:01:18]}  Be6 {[%clk 0:01:49]} 23. Bf3 {[%clk 0:01:11]}  Rxd1+ {[%clk 0:01:46]} 24. Qxd1 {[%clk 0:01:12]}  h5 {[%clk 0:01:41]} 25. h4 {[%clk 0:01:06]}  Qf6 {[%clk 0:01:35]} 26. Qc2 {[%clk 0:01:00]}  Qd8 {[%clk 0:01:29]} 27. Nc3 {[%clk 0:00:57]}  Qf6 {[%clk 0:01:23]} 28. Nd5 {[%clk 0:00:49]}  Qa1+ {[%clk 0:01:22]} 29. Kg2 {[%clk 0:00:47]}  Qxa3 {[%clk 0:01:22]} 30. Nc7 {[%clk 0:00:48]}  Qb2 {[%clk 0:01:02]} 31. Qxb2 {[%clk 0:00:40]}  Bxb2 {[%clk 0:01:01]} 32. Nxe6 {[%clk 0:00:41]}  fxe6 {[%clk 0:01:01]} 33. Bc6 {[%clk 0:00:40]}  Kf7 {[%clk 0:01:01]} 34. Kf3 {[%clk 0:00:40]}  Kf6 {[%clk 0:01:01]} 35. Ke2 {[%clk 0:00:37]}  Bc3 {[%clk 0:01:00]} 36. f4 {[%clk 0:00:34]}  Ke7 {[%clk 0:01:00]} 37. Kf3 {[%clk 0:00:30]}  Be1 {[%clk 0:00:59]} 38. e4 {[%clk 0:00:27]}  fxe4+ {[%clk 0:00:54]} 39. Bxe4 {[%clk 0:00:27]}  Kf6 {[%clk 0:00:55]} 40. Bc6 {[%clk 0:00:13]}  e5 {[%clk 0:00:48]} 41. Be4 {[%clk 0:00:12]}  exf4 {[%clk 0:00:46]} 42. Kxf4 {[%clk 0:00:13]}  Bd2+ {[%clk 0:00:45]} 43. Kf3 {[%clk 0:00:13]}  a6 {[%clk 0:00:43]} 44. Bb7 {[%clk 0:00:13]}  a5 {[%clk 0:00:42]} 45. Be4 {[%clk 0:00:13]}  Bc3 {[%clk 0:00:40]} 46. Bd3 {[%clk 0:00:06]}  Be5 {[%clk 0:00:40]} 47. Be4 {[%clk 0:00:06]}  Bd6 {[%clk 0:00:39]} 48. Bd3 {[%clk 0:00:06]}  Kg7 {[%clk 0:00:38]} 49. Be4 {[%clk 0:00:06]}  Kh6 {[%clk 0:00:38]} 50. Bd3 {[%clk 0:00:06]}  g5 {[%clk 0:00:38]} 51. hxg5+ {[%clk 0:00:07]}  Kxg5 {[%clk 0:00:39]} 52. Be4 {[%clk 0:00:07]}  Kf6 {[%clk 0:00:38]} 53. Bc6 {[%clk 0:00:07]}  Ke5 {[%clk 0:00:33]} 54. Kg2 {[%clk 0:00:06]}  Kd4 {[%clk 0:00:33]} 55. Kh3 {[%clk 0:00:06]}  Kc3 {[%clk 0:00:32]} 56. Ba4 {[%clk 0:00:06]}  Be7 {[%clk 0:00:31]} 57. g4 {[%clk 0:00:05]}  h4 {[%clk 0:00:31]} 58. Kh2 {[%clk 0:00:05]}  Kb4 {[%clk 0:00:31]} 59. Kh3 {[%clk 0:00:04]}  Bg5 {[%clk 0:00:29]} 60. Kh2 {[%clk 0:00:04]}  b5 {[%clk 0:00:27]} 61. cxb5 {[%clk 0:00:04]}  c4 {[%clk 0:00:28]} 62. bxc4 {[%clk 0:00:02]}  Kxa4 {[%clk 0:00:28]} 63. b6 {[%clk 0:00:02]}  Kb4 {[%clk 0:00:26]} 64. b7 {[%clk 0:00:01]}  Bf4+ {[%clk 0:00:26]} 65. Kh3 {[%clk 0:00:01]}  a4 {[%clk 0:00:25]} 0-1


[Site "https://www.chess.com"]

[Event "Titled Tuesday Blitz June 15 2021"]
[White "Vignesh, N R"]
[Black "Javakhadze, Zurab"]
[WhiteFideId "25012215"]
[BlackFideId "13603647"]
[WhiteElo "2401"]
[BlackElo "2381"]
[Result "1-0"]
[Round "03"]
[TimeControl "180+1"]
[Date "2021.06.15"]
[WhiteClock "0:01:38"]
[BlackClock "0:00:59"]

1. c4 {[%clk 0:03:00]}  e5 {[%clk 0:02:59]} 2. Nc3 {[%clk 0:03:00]}  Nc6 {[%clk 0:02:58]} 3. g3 {[%clk 0:03:00]}  Nf6 {[%clk 0:02:49]} 4. Bg2 {[%clk 0:03:01]}  Bc5 {[%clk 0:02:49]} 5. e3 {[%clk 0:03:00]}  O-O {[%clk 0:02:48]} 6. Nge2 {[%clk 0:03:01]}  Re8 {[%clk 0:02:48]} 7. d3 {[%clk 0:03:00]}  Bf8 {[%clk 0:02:39]} 8. O-O {[%clk 0:02:59]}  Ne7 {[%clk 0:02:39]} 9. d4 {[%clk 0:02:55]}  Ng6 {[%clk 0:02:33]} 10. dxe5 {[%clk 0:02:47]}  Nxe5 {[%clk 0:02:32]} 11. b3 {[%clk 0:02:47]}  h5 {[%clk 0:02:31]} 12. h3 {[%clk 0:02:44]}  d6 {[%clk 0:02:31]} 13. f4 {[%clk 0:02:41]}  Ng6 {[%clk 0:02:25]} 14. e4 {[%clk 0:02:38]}  c6 {[%clk 0:02:18]} 15. Be3 {[%clk 0:02:37]}  a5 {[%clk 0:02:06]} 16. Qd2 {[%clk 0:02:31]}  Qc7 {[%clk 0:02:03]} 17. Rad1 {[%clk 0:02:30]}  Nd7 {[%clk 0:02:00]} 18. e5 {[%clk 0:02:13]}  dxe5 {[%clk 0:01:55]} 19. f5 {[%clk 0:02:13]}  Ne7 {[%clk 0:01:53]} 20. Ne4 {[%clk 0:02:11]}  Nf6 {[%clk 0:01:43]} 21. Nxf6+ {[%clk 0:02:06]}  gxf6 {[%clk 0:01:43]} 22. g4 {[%clk 0:02:03]}  hxg4 {[%clk 0:01:39]} 23. hxg4 {[%clk 0:02:04]}  e4 {[%clk 0:01:30]} 24. Nf4 {[%clk 0:02:01]}  b5 {[%clk 0:01:20]} 25. Nh5 {[%clk 0:02:00]}  Bg7 {[%clk 0:01:15]} 26. Bd4 {[%clk 0:01:50]}  Rd8 {[%clk 0:01:01]} 27. Nxg7 {[%clk 0:01:46]}  c5 {[%clk 0:01:01]} 28. Qh6 {[%clk 0:01:40]}  Rxd4 {[%clk 0:00:59]} 29. Nh5 {[%clk 0:01:38]} 1-0


[Site "https://www.chess.com"]